Cogmind - Beta 10.2 @@@ ROGUE MODE // 2022.01.29 @ 17:56:43 Player: Triffids Result: Destroyed by S-10 Pest with Light Assault Rifle Performance ------------- Evolutions (1) 500 Regions Visited (2) 400 Robots Destroyed (26) 130 Value Destroyed (633) 633 Prototype IDs (4) 80 Alien Tech Used (0) 0 Bonus (35) 35 TOTAL SCORE: 1778 Bonus ------- High Alert Combat Kills 35 Cogmind --------- Core Integrity 0/400 Matter 295/300 Energy 90/100 System Corruption 0% Temperature Cool (0) Movement Core (50) Location -9/Materials Parts ------- > --- POWER (1) -------- (None) > --- PROPULSION (2) --- (None) > --- UTILITY (4) ------ (None) > --- WEAPON (2) ------- (None) > --- INVENTORY (4) ---- Aluminum Leg Aluminum Leg Small Storage Unit Peak State ------------ > --- POWER ------------ Light Ion Engine > --- PROPULSION ------- Aluminum Leg Aluminum Leg > --- UTILITY ---------- Improved Heat Sink Small Storage Unit > --- WEAPON ----------- Improved Medium Laser Beam Cannon > --- INVENTORY -------- Aluminum Leg EM Pulse Gun [Rating: 11] Favorites ----------- Power Light Ion Engine Engine Light Ion Engine Propulsion Aluminum Leg Leg Aluminum Leg Utility Small Storage Unit Device Terrain Scanner Storage Small Storage Unit Protection Light Armor Plating Weapon EM Pulse Gun Energy Gun EM Pulse Gun Energy Cannon Beam Cannon Ballistic Gun Shotgun Build | -11 -10 -9 ------- Run | Scr Mat Mat Slots Evolved 2 | . . 2 Power . | . . . Propulsion . | . . . Utility 2 | . . 2 Weapon . | . . . Parts Attached 21 | 6 4 11 Power 2 | 1 . 1 Engine 2 | 1 . 1 Core . | . . . Reactor . | . . . Propulsion 4 | 2 . 2 Treads . | . . . Leg 4 | 2 . 2 Wheel . | . . . Hover . | . . . Flight . | . . . Utility 5 | 1 2 2 Device 3 | . 1 2 Storage 1 | 1 . . Processor . | . . . Hackware . | . . . Protection 1 | . 1 . Artifact . | . . . Weapon 10 | 2 2 6 Energy Gun 8 | 2 2 4 Energy Cannon 1 | . . 1 Ballistic Gun 1 | . . 1 Ballistic Cannon . | . . . Launcher . | . . . Special Weapon . | . . . Impact Weapon . | . . . Slashing Weapon . | . . . Piercing Weapon . | . . . Special Melee Weapon . | . . . Unidentified Prototypes . | . . . Parts Lost 16 | . . 16 Power 2 | . . 2 Propulsion 3 | . . 3 Utility 3 | . . 3 Weapon 8 | . . 8 Highest Loss Streak 9 | . . 9 Average Slot Usage (%) 86 | . 98 69 Engine 11 | . 14 8 Leg 23 | . 28 18 Device 4 | . 2 7 Storage 12 | . 14 10 Protection 7 | . 10 3 Energy Gun 22 | . 28 14 Energy Cannon 2 | . . 4 Naked Turns 16 | . . 16 Heaviest Build 16 | 10 15 16 Greatest Support 20 | 20 20 20 Greatest Overweight (x) 3 | 3 . . Average Overweight (x) . | . . . Largest Inventory Capacity 6 | 6 6 6 Average Capacity 5 | 5 6 5 Most Carried 6 | 5 6 6 Average Carried 4 | 3 5 5 Final Capacity 6 | 6 6 4 Final Carried 6 | 2 6 3 Class Distribution -------------------- 85% | Mutant 14% | Scavenger-Mutant Dominant Class ---------------- Mutant | -10/Materials Mutant | -9/Materials Resources | -11 -10 -9 ----------- Run | Scr Mat Mat Matter Collected 510 | 232 68 210 Remotely . | . . . Salvage Created 1042 | . 431 611 Parts 62 | . 29 33 Haulers Intercepted 4 | . 2 2 Recyclers Shooed . | . . . Parts Field Recycled . | . . . Retrieved Matter . | . . . Parts Self-Destructed . | . . . Prevented . | . . . Kills | -11 -10 -9 ------- Run | Scr Mat Mat Combat Hostiles Destroyed 18 | . 8 10 Guns 15 | . 8 7 Cannons 2 | . . 2 AOE 1 | . . 1 Classes Destroyed 9 | . 5 4 Worker 1 | . . 1 Hauler 4 | . 2 2 Recycler 1 | . . 1 Operator 1 | . 1 . Watcher 1 | . 1 . Swarmer 4 | . 3 1 Grunt 12 | . 5 7 Duelist 1 | . . 1 Sentry 1 | . . 1 Best Kill Streak 6 | . 3 6 Combat Bots Only 5 | . 3 5 Max Kills in Single Turn 2 | . 1 2 Gunslinging 1 | . . 1 Exploded 1 | . . 1 Melee . | . . . Uniques/NPCs Destroyed . | . . . Combat | -11 -10 -9 -------- Run | Scr Mat Mat Damage Taken 1629 | . 171 1458 Core 420 | . 19 401 Absorbed by Shields . | . . . Core Remaining (%) 96 | 100 92 . Volleys Fired 72 | . 28 44 Largest 2 | . 2 2 Hottest 121 | . 105 121 Shots Fired 141 | . 56 85 Gun 122 | . 56 66 Cannon 19 | . . 19 Launcher . | . . . Special . | . . . Kinetic 8 | . . 8 Thermal 87 | . 28 59 Explosive . | . . . Electromagnetic 46 | . 28 18 Robot Hit Streak 11 | . 6 11 Robot Miss Streak 5 | . 5 4 Penetration Max . | . . . Secondary Targets 1 | . . 1 Max Gunslinging Chain 1 | . . 1 Shots Hit Robots 84 | . 27 57 Core Hits 37 | . 16 21 Critical Hits . | . . . Critical Kills . | . . . Critical Parts Destroyed . | . . . Melee Attacks . | . . . Impact . | . . . Slashing . | . . . Piercing . | . . . Sneak Attacks . | . . . Combat Hostiles . | . . . Follow-up Attacks . | . . . Damage Inflicted 1652 | . 540 1112 Guns 1264 | . 465 799 Cannons 145 | . . 145 Explosions 243 | . 75 168 Melee . | . . . Ramming . | . . . Kinetic 105 | . . 105 Thermal 1029 | . 221 808 Explosive . | . . . Electromagnetic 518 | . 319 199 Impact . | . . . Slashing . | . . . Piercing . | . . . Highest Corruption . | . . . Average Corruption . | . . . Corruption Purged . | . . . Overload Shots . | . . . Overflow Damage 36 | . 18 18 Projectiles . | . . . Explosions 36 | . 18 18 Melee . | . . . Knockbacks . | . . . Impact . | . . . Kinetic . | . . . Secondary . | . . . Self-Inflicted Damage 86 | . . 86 Shots 2 | . . 2 Rammed . | . . . Targets Rammed . | . . . Kicked . | . . . Crushed . | . . . Highest Temperature 545 | . 195 545 Average Temperature 132 | . 71 173 Received Heat Transfer 480 | . 51 429 Effects 5 | . . 5 Energy Bleed 1 | . . 1 Interference 1 | . . 1 Matter Decay 3 | . . 3 Siege Activations . | . . . Robots Corrupted . | . . . Combat Hostiles . | . . . Parts Fried 1 | . 1 . Impact Corruptions . | . . . Robots Melted . | . . . Combat Hostiles . | . . . Parts Melted . | . . . Heat Transferred 2005 | . 436 1569 Parts Sabotaged . | . . . Parts Stolen . | . . . Parts Stripped . | . . . Power Chain Reactions 4 | . 2 2 Missiles Intercepted . | . . . Alert | -11 -10 -9 ------- Run | Scr Mat Mat Peak Influence 421 | . 241 421 Initial 68 | . . 68 Average 120 | . 76 195 Maximum Alert Level 2 | . 1 2 Low Security (%) 77 | 100 97 47 Level 1 19 | . 2 46 Level 2 2 | . . 5 Level 3 . | . . . Level 4 . | . . . Level 5 . | . . . High Security . | . . . Max Security . | . . . Squads Dispatched 3 | . 3 . Investigation 2 | . 2 . Extermination . | . . . Reinforcement 1 | . 1 . Assault . | . . . Garrison . | . . . Intercept . | . . . Construction Impeded . | . . . Haulers Reinforced . | . . . Stealth | -11 -10 -9 --------- Run | Scr Mat Mat Distress Signals 7 | . 2 5 Communications Jammed . | . . . Distress Signals . | . . . Times Spotted 45 | . 20 25 Peak Tracking Total 10 | . 4 10 Tactical Retreats 5 | . 2 3 Traps | -11 -10 -9 ------- Run | Scr Mat Mat Traps Triggered . | . . . Indirectly . | . . . Trap Hack Attempts . | . . . Triggered . | . . . Disarmed . | . . . Reprogrammed . | . . . Reused . | . . . Traps Extracted . | . . . Installed . | . . . Triggered . | . . . Machines | -11 -10 -9 ---------- Run | Scr Mat Mat Machines Disabled 2 | . 1 1 Max in Single Turn 1 | . 1 1 Machines Sabotaged . | . . . Garrisons Compromised . | . . . Overloaded Fab Kills . | . . . Fab Network Shutdowns . | . . . Hacking | -11 -10 -9 --------- Run | Scr Mat Mat Machines Accessed 5 | . 4 1 Terminals 4 | . 4 . Fabricators . | . . . Repair Stations . | . . . Recycling Units . | . . . Scanalyzers 1 | . . 1 Garrison Access . | . . . Total Hacks 20 | . 16 4 Successful 10 | . 8 2 Failed 10 | . 8 2 Catastrophic 1 | . 1 . Database Lockouts . | . . . Manual 9 | . 9 . Terminals 16 | . 16 . Fabricators . | . . . Repair Stations . | . . . Recycling Units . | . . . Scanalyzers 4 | . . 4 Garrison Access . | . . . Terminal Hacks 5 | . 5 . Robot Analysis 2 | . 2 . Prototype ID Bank 1 | . 1 . Terminal Index 1 | . 1 . Locate Traps 1 | . 1 . Fabricator Hacks . | . . . Repair Station Hacks . | . . . Recycling Unit Hacks . | . . . Scanalyzer 2 | . . 2 Insert Component 2 | . . 2 Garrison Access Hacks . | . . . Unauthorized Hacks 3 | . 3 . Terminals 3 | . 3 . Track 1 | . 1 . Botnet 2 | . 2 . Fabricators . | . . . Repair Stations . | . . . Recycling Units . | . . . Scanalyzers . | . . . Garrison Access . | . . . Data Cores Recovered . | . . . Used . | . . . Hacking Detections 5 | . 4 1 Full Trace Events . | . . . Feedback Events . | . . . Feedback Blocked . | . . . Robot Schematics Acquired . | . . . Robots Built . | . . . Matter . | . . . Time . | . . . Total Robot Build Rating . | . . . Part Schematics Acquired . | . . . Parts Built . | . . . Matter . | . . . Time . | . . . Total Part Build Rating . | . . . Parts Repaired . | . . . Time . | . . . Parts Recycled . | . . . Recycled Matter . | . . . Retrieved Matter . | . . . Retrieved Components . | . . . Parts Scanalyzed . | . . . Part Schematics Acquired . | . . . Parts Damaged . | . . . Bothacking | -11 -10 -9 ------------ Run | Scr Mat Mat Used RIF Installer . | . . . Robots Hacked . | . . . Non-combat . | . . . Combat . | . . . Robot Hacks Applied . | . . . Relay Couplers Released . | . . . Robots Rewired . | . . . Allies Hacked . | . . . Hacks Repelled . | . . . Allies | -11 -10 -9 -------- Run | Scr Mat Mat Total Allies . | . . . Largest Group . | . . . Highest-Rated Group . | . . . Highest-Rated Ally . | . . . Total Orders . | . . . Ally Attacks . | . . . Total Damage . | . . . Kills . | . . . Allies Corrupted . | . . . Allies Melted . | . . . Intel | -11 -10 -9 ------- Run | Scr Mat Mat Robot Analysis Total 2 | . 2 . Derelict Logs Recovered . | . . . Drone Launches . | . . . Drone Recoveries . | . . . Exploration | -11 -10 -9 ------------- Run | Scr Mat Mat Turns Passed 1011 | 48 562 401 Spaces Moved 571 | 37 358 176 Core 33 | 30 . 3 Treads . | . . . Legs 538 | 7 358 173 Wheels . | . . . Hover . | . . . Flight . | . . . Fastest Speed 50 | 50 120 50 Average Speed 118 | 98 120 118 Slowest Speed 200 | 200 120 120 Overloaded Moves . | . . . Propulsion Burnouts . | . . . Robots Hopped . | . . . Cave-ins Triggered . | . . . Exploration Rate (%) 27 | 4 62 16 Regions Visited 2 Branch Regions . Pre-discovered Areas . | . . . Known Exits Taken . | . . . Unknown Exits Taken 2 | 1 1 . Scrap Searched . | . . . Spaces Dug . | . . . Terrain Destroyed 14 | . 6 8 Melee . | . . . Projectile . | . . . AOE 14 | . 6 8 Terrain Rammed . | . . . Walls Destroyed . | . . . Machines Disabled . | . . . Actions | -11 -10 -9 --------- Run | Scr Mat Mat Total 767 | 47 436 284 Wait 77 | . 35 42 Move 569 | 36 357 176 Hop . | . . . Pick Up 19 | 5 7 7 Fast Attach 6 | 3 2 1 Attach 12 | 3 . 9 Detach 1 | . . 1 Swap 3 | . 2 1 Drop 8 | . 5 3 Fire 72 | . 28 44 Melee . | . . . Ram . | . . . Kick . | . . . Crush . | . . . Escape Stasis . | . . . Rewire . | . . . Trap . | . . . Miscellaneous . | . . . Route ------- -11/Scrapyard -10/Materials (discovered 2 exits: *Mat / [*Min]) -9/Materials History --------- Turn | Location | Event 8 | -11/Scrapyard | Discovered new exit (range 15) 49 | -11/Scrapyard | Entered Materials 283 | -10/Materials | Discovered new exit (range 7) 316 | -10/Materials | Build established: Mutant 522 | -10/Materials | Discovered new exit (range 12) 611 | -10/Materials | Entered another Materials area 611 | -9/Materials | Evolved 2 slots: Utility x2 822 | -9/Materials | Lost 7 parts (1p1n2u3w) 995 | -9/Materials | Core integrity fell below 50% 1008 | -9/Materials | Core integrity fell below 20% 1012 | -9/Materials | Destroyed by S-10 Pest with Light Assault Rifle Last Messages --------------- 00993_ K-01 Serf collects debris. 00996_ Beam Rifle destroyed. 00996_ U-05 Engineer lays Concrete. 00997_ K-01 Serf collects debris. 00997_ U-05 Engineer lays Concrete. 00998_ K-01 Serf collects debris. 01000_ U-05 Engineer builds a Wall. 01001_ K-01 Serf collects debris. 01001_ U-05 Engineer lays Concrete. 01002_ K-01 Serf collects debris. 01002_ U-05 Engineer lays Concrete. 01003_ K-01 Serf collects debris. 01005_ U-05 Engineer lays Concrete. 01005_ K-01 Serf collects debris. 01006_ U-05 Engineer lays Concrete. 01007_ K-01 Serf collects debris. 01008_ U-05 Engineer lays Concrete. 01011_ K-01 Serf collects debris. 01011_ K-01 Serf cleans the Scanalyzer. 01011_ U-05 Engineer lays Concrete. Map ----- +----------------------------------------------------+ | ????## """# #??????????????????????????????? | | ?????# """# #??????????????????????????????? | | ?????# """# #??????????????????????????????? | | ?????# # #??????##########??????????????? | | #########+##### #??????# #??????????????? | | * ## #???# #??????# #??????????????? | | ## ##### ######## #??????????????? | | "" """ # # #??????????????? | | "" """ + + #??????????????? | | "" "" # # #??????????????? | | ""[ "" # #####+####### # #??????????????? | | =%=* # ## #?# # #??????????????? | | == [ # ## #?# # #??????????????? | | ######## ## #?# ###########?????????????? | | ???????# ## #?# #""= #?????????????? | | ???????# ## #?# "[! #?????????????? | | ???????# ## #?# ##"%[ #?????????????? | | ?#?????# ## #?# ##"[ [ #?????????????? | | ???????# ## #?#*### #?????????????? | | ???????# ## #?#[#?######+## ????????????? | | ???????# #######+###?#%#####???????????????????? | | ???????# ##????# #####+#####? ?????????????????? | | ???????# #?????# # ==*!%#???????????????????? | | ??????## ##????# # *=%g==#???????????????????? | | ###### = ###### # a =%!u= #? ?????????????????? | | %% % # !s@s* #? ????????????????? | | ###### * + "" ""kk #???????????????????? | | ??????#%= #^""S""k #???????????????????? | | ??????# % ######## """" #???????????????????? | | ??????## ##??????# #???????????????????? | | ???????# #???????###########???????????????????? | | ???? ?# #??????? ?????????????????????????????? | | ??? ???+ +?????????????????????????????????????? | | ???????# #?????????????????????????????????????? | | ?? ????# #????"???????#? ??????????????????????? | | ???????# #?? ???????????????#??????????????????? | | ???????# #? ?? ????????????????????????????????? | | ??? ???# #?????????????????????????????????????? | | ???????# #?????????????????????????????????????? | | ???????+ #?????????????????????????????????????? | | ???????# ?????????????????????????????????????? | | ???????# ?????????????????????????????????????? | | ???????# ?????????????????????????????????????? | | ????????# ##?????????????????????????????????????? | | ????????? ???????????????????????????????????????? | | ?????????????????????????????????????????????????? | | ?????????????????????????????????????????????????? | | ?????????????????????????????????????????????????? | | ?????????????????????????????????????????????????? | | ?????????????????????????????????????????????????? | +----------------------------------------------------+ Best States ------------- Heat Dissipation 42 Energy Generation 10 Energy Capacity 125 Matter Stores 300 Matter Capacity 300 Sight Range 16 Terrain Scan Range 14 Terrain Scan Density 10 Armor Coverage 150 Evasion (%) 40 Item Schematics ----------------- None Robot Schematics ------------------ None Fabricated ------------ Nothing Alien Tech Used ----------------- None Achievements -------------- None Challenges ------------ None Game ------ Seed SubatomicBottomlessAmplifier Manual? 0 Play Time 00:17:27 Cumulative 105.7 hours Start 2022.01.29 @ 17:40:10 End 2022.01.29 @ 17:56:43 Sessions 1 Manual Loads 0 Difficulty Rogue Special Mode None Game No. 118 Rogue 118 Adventurer 0 Explorer 0 Win Type - Total 0 Types 0/0/0/0/0/0/0/0/0 Lore% 43 Gallery% 45 Achievement% 31 Wizard Run 0 Options --------- ASCII 0 Keyboard 1 Movement Vi Keybinds 0 Fullscreen 0 Font 20/SmallcapsGlow Map View 76x50 Tactical HUD 1 Map Filters NONE Filters NONE Steam 1 RUN: d78ee1da-899f-4230-8f96-de1684cb255c